bitfinex-derivatives/quotes_BTCF0:USTF0_20250121
["timestamp","ask_amount","ask_price","bid_price","bid_amount"]
[1737421742774,0.29216689,102260.0,102230.0,0.3608]
[1737421742976,0.039178,102240.0,102230.0,0.3608]
[1737421743778,0.039178,102240.0,102230.0,0.39998]
[1737421743980,0.039178,102240.0,102230.0,0.3608]
[1737421744272,0.03918,102230.0,102220.0,0.22947526]
[1737421744478,0.39998,102230.0,102220.0,0.19571608]
[1737421744678,0.039184,102220.0,102210.0,0.65063907]
[1737421745179,0.039184,102220.0,102210.0,0.28983907]
[1737421745870,0.039184,102220.0,102210.0,0.65063907]
[1737421746072,0.039184,102220.0,102210.0,0.28983907]
[1737421746471,0.039187,102210.0,102200.0,0.3608]
[1737421747774,0.039191,102200.0,102190.0,0.4008]
[1737421747975,0.039188,102210.0,102190.0,0.55675148]
[1737421748173,0.039191,102200.0,102190.0,0.439994]
[1737421748476,0.039191,102200.0,102190.0,0.4008]
[1737421748872,0.039191,102200.0,102190.0,0.04]
[1737421749075,0.339191,102200.0,102190.0,0.04]
[1737421749380,1.539191,102200.0,102190.0,0.04]
[1737421749975,0.039191,102200.0,102190.0,0.04]
[1737421750382,0.039191,102200.0,102190.0,0.4008]
[1737421750571,0.039199,102180.0,102160.0,0.36040934]
[1737421750777,0.400003,102170.0,102160.0,0.13246411]
[1737421750980,0.039203,102170.0,102160.0,0.06543951]
[1737421752274,0.400003,102170.0,102160.0,0.06543951]
[1737421752582,0.039203,102170.0,102160.0,0.06543951]
[1737421753982,0.039203,102170.0,102150.0,0.03921]
[1737421754180,0.04888643,102180.0,102160.0,0.400007]
[1737421754481,0.039199,102180.0,102170.0,0.3608]
[1737421754780,0.23102061,102210.0,102170.0,0.3608]
[1737421754781,0.00146913,102210.0,102170.0,0.3608]
[1737421754987,0.05029411,102210.0,102190.0,0.399995]
[1737421755492,0.00146913,102210.0,102200.0,0.039191]
[1737421755673,0.00146913,102210.0,102200.0,0.399991]
[1737421756788,0.21414668,102240.0,102220.0,0.039181]
[1737421757375,1.87216686,102250.0,102210.0,0.3608]
[1737421757592,0.05053986,102250.0,102230.0,0.399978]
[1737421757979,0.41133986,102250.0,102230.0,0.399978]
[1737421758288,0.04064082,102250.0,102230.0,0.039179]
[1737421758693,0.04064082,102250.0,102230.0,0.399979]
[1737421758881,0.04064082,102250.0,102230.0,0.039179]
[1737421759587,0.03918,102230.0,102220.0,0.3608]
[1737421759784,0.03918,102230.0,102210.0,0.613886]
[1737421759975,0.04063982,102250.0,102230.0,0.039179]
[1737421760690,0.04063982,102250.0,102230.0,0.399979]
[1737421760886,0.00146782,102250.0,102240.0,0.039176]
[1737421761383,0.039176,102240.0,102230.0,0.3608]
[1737421761584,0.04063982,102250.0,102220.0,0.399983]
[1737421761788,0.039185,102220.0,102200.0,0.01107789]
[1737421762085,0.039187,102210.0,102200.0,0.25885762]
[1737421762286,0.039182,102230.0,102210.0,0.039187]
[1737421762487,0.3608,102240.0,102200.0,0.21966762]
[1737421762704,0.3608,102240.0,102200.0,0.25885862]
[1737421762705,0.039186,102220.0,102200.0,0.25885862]
[1737421763591,0.039186,102220.0,102200.0,0.61965862]
[1737421764285,0.88330894,102250.0,102200.0,0.7756101]
[1737421764491,0.039176,102240.0,102210.0,0.039185]
[1737421764791,0.039176,102240.0,102220.0,0.039183]
[1737421767098,0.399983,102230.0,102210.0,0.039187]
[1737421767391,0.039186,102220.0,102200.0,0.04065862]
[1737421767992,0.51675148,102230.0,102200.0,0.00146762]
[1737421768298,0.039181,102230.0,102210.0,0.039187]
[1737421768592,0.039181,102230.0,102210.0,0.253787]
[1737421768795,0.039181,102230.0,102210.0,0.614587]
[1737421769501,0.04903429,102230.0,102210.0,0.614587]
[1737421769993,0.40983429,102230.0,102210.0,0.614587]
[1737421770293,0.039184,102220.0,102210.0,0.3608]
[1737421770792,0.039188,102210.0,102200.0,0.00146762]
[1737421771003,0.039195,102190.0,102180.0,0.37146572]
[1737421771187,0.039195,102190.0,102170.0,0.674403]
[1737421771492,0.039199,102180.0,102170.0,0.21779562]
[1737421771698,0.399999,102180.0,102170.0,0.2079]
[1737421771895,0.039203,102170.0,102160.0,0.37293376]
[1737421772193,0.19515448,102170.0,102160.0,0.37293376]
[1737421772383,0.55595448,102170.0,102160.0,0.37146572]
[1737421773183,0.85595448,102170.0,102160.0,0.37146572]
[1737421773384,0.55595448,102170.0,102160.0,0.37146572]
[1737421773992,0.400003,102170.0,102160.0,0.37146572]
[1737421774197,0.40966234,102170.0,102160.0,0.37146572]
[1737421774988,0.37045934,102170.0,102160.0,0.37146572]
[1737421775192,0.3608,102190.0,102160.0,0.73226572]
[1737421775497,0.0392,102180.0,102160.0,0.039207]
[1737421776208,0.039205,102170.0,102150.0,0.0487731]
[1737421776387,0.039205,102170.0,102160.0,0.03921]
[1737421776989,0.039203,102180.0,102160.0,0.03921]
[1737421777692,0.3608,102170.0,102160.0,0.03921]
[1737421777996,0.400005,102170.0,102160.0,0.03921]
[1737421778190,0.400005,102170.0,102150.0,0.4095741]
[1737421778389,0.039195,102200.0,102180.0,0.039202]
[1737421778800,0.17477017,102190.0,102180.0,0.039202]
[1737421779095,0.17477017,102190.0,102180.0,0.400002]
[1737421779398,0.21396817,102190.0,102180.0,0.400002]
[1737421779693,0.21396817,102190.0,102180.0,0.039202]
[1737421779886,0.21396817,102190.0,102180.0,0.400002]
[1737421779887,0.17477017,102190.0,102180.0,0.400002]
[1737421780203,0.21396817,102190.0,102170.0,0.400005]
[1737421780396,0.039202,102180.0,102170.0,0.3608]
[1737421781204,0.19515348,102180.0,102150.0,0.4095741]
[1737421781397,0.039205,102170.0,102150.0,0.039212]
[1737421781698,0.17477017,102190.0,102180.0,0.039201]
[1737421781898,0.17477017,102190.0,102180.0,0.400001]
[1737421782101,0.14562846,102190.0,102180.0,0.039201]
[1737421782395,0.14562846,102190.0,102180.0,0.400001]
[1737421783198,0.17477017,102200.0,102190.0,0.039199]
[1737421783392,0.17477017,102200.0,102190.0,0.399999]
[1737421783998,0.17477017,102200.0,102190.0,0.49786072]
[1737421785395,0.17477017,102200.0,102190.0,0.399999]
[1737421785893,0.21396517,102200.0,102190.0,0.399999]
[1737421786093,0.21396517,102200.0,102180.0,0.37036887]
[1737421786298,0.039199,102190.0,102170.0,0.617006]
[1737421786499,0.039199,102190.0,102170.0,0.2654491]
[1737421786893,0.039199,102190.0,102180.0,0.039203]
[1737421788191,0.039199,102190.0,102170.0,0.5870431]
[1737421788192,0.11659504,102200.0,102170.0,0.5870431]
[1737421788388,0.039207,102170.0,102160.0,0.40001]
[1737421789102,0.039207,102170.0,102160.0,0.3608]
[1737421789304,0.03921,102160.0,102150.0,0.3608]
[1737421789597,0.039214,102150.0,102140.0,0.37203785]
[1737421789803,0.039214,102150.0,102140.0,0.36237173]
[1737421789990,0.039214,102150.0,102140.0,0.00157173]
[1737421790186,0.039214,102150.0,102140.0,0.00010334]
[1737421790485,0.19516548,102150.0,102110.0,1.11053551]
[1737421790691,0.039226,102120.0,102110.0,0.29131349]
[1737421791402,0.039222,102130.0,102110.0,0.69134349]
[1737421791992,0.00010334,102120.0,102110.0,0.69134349]
[1737421793204,0.039218,102140.0,102120.0,0.039225]
[1737421793499,0.039218,102140.0,102130.0,0.3608]
[1737421793698,0.039218,102140.0,102120.0,0.400025]
[1737421793898,0.52657317,102150.0,102110.0,0.65211349]
[1737421794103,0.039226,102120.0,102110.0,0.29131349]
[1737421795198,0.039226,102120.0,102100.0,0.45005375]
[1737421795199,0.339226,102120.0,102100.0,0.45005375]
[1737421795399,0.55598148,102110.0,102100.0,0.43930085]
[1737421795698,0.19518148,102110.0,102100.0,0.0892471]
[1737421795901,0.039237,102100.0,102080.0,7.228e-05]
[1737421796107,0.039237,102090.0,102080.0,7.228e-05]
[1737421796796,0.19518848,102090.0,102080.0,7.228e-05]
[1737421796998,0.039237,102090.0,102080.0,7.228e-05]
[1737421800000,0.039237,102090.0,102060.0,0.40954985]
[1737421800200,0.039237,102090.0,102080.0,0.3608]
[1737421800895,7.228e-05,102090.0,102080.0,0.40004]
[1737421801300,7.228e-05,102090.0,102080.0,0.87654906]
[1737421801498,0.30123941,102130.0,102110.0,0.039229]
[1737421801698,0.30123941,102130.0,102120.0,0.3608]
[1737421801898,0.30123941,102130.0,102110.0,0.3608]
[1737421802198,0.30123941,102130.0,102100.0,0.400033]
[1737421802199,0.039226,102120.0,102100.0,0.400033]
[1737421802400,0.039226,102120.0,102100.0,0.039233]
[1737421802709,0.039234,102100.0,102090.0,0.623537]
[1737421802897,0.039234,102100.0,102090.0,0.5843]
[1737421803101,0.039234,102100.0,102080.0,0.622641]
[1737421803304,0.03923,102110.0,102090.0,0.400036]
[1737421803502,0.15551187,102110.0,102090.0,0.400036]
[1737421803905,0.27223335,102110.0,102080.0,0.3608]
[1737421804098,0.15595148,102090.0,102070.0,0.5642]
[1737421804404,0.039241,102080.0,102070.0,0.5642]
[1737421804800,0.039241,102080.0,102070.0,0.3608]
[1737421805001,0.039234,102100.0,102070.0,0.400043]
[1737421805194,0.039234,102100.0,102090.0,0.3608]
[1737421806003,0.0488002,102100.0,102090.0,0.7216]
[1737421806216,0.15551187,102110.0,102090.0,0.760837]
[1737421806406,0.11628187,102110.0,102100.0,0.400034]
[1737421806707,0.15551187,102110.0,102090.0,0.400037]
[1737421806902,0.039234,102100.0,102090.0,0.400037]
[1737421807103,0.039234,102100.0,102090.0,0.3608]
[1737421807600,0.039234,102100.0,102090.0,0.760837]
[1737421807811,0.039234,102100.0,102090.0,0.400037]
[1737421808112,0.039234,102100.0,102090.0,0.760837]
[1737421808308,0.039234,102100.0,102090.0,0.7216]
[1737421809410,0.039234,102100.0,102090.0,0.760837]
[1737421809809,0.039234,102100.0,102090.0,0.7216]
[1737421809997,0.34020674,102110.0,102070.0,0.400045]
[1737421810202,0.039238,102090.0,102070.0,0.400045]
[1737421810403,0.34020674,102110.0,102080.0,0.3608]
[1737421810606,0.039234,102100.0,102090.0,0.3608]
[1737421812521,1.67442281,102120.0,102090.0,0.3608]
[1737421812522,0.21364981,102120.0,102100.0,0.03923]
[1737421812810,0.21364981,102120.0,102110.0,0.76083]
[1737421813013,0.21364981,102120.0,102110.0,0.3608]
[1737421813210,0.21364981,102120.0,102110.0,0.40003]
[1737421813507,0.21364981,102120.0,102110.0,0.4979588]
[1737421813508,0.17442281,102120.0,102110.0,0.4979588]
[1737421814418,0.17442281,102120.0,102110.0,0.40003]
[1737421814618,0.00146995,102130.0,102110.0,0.40003]
[1737421814814,0.00146995,102130.0,102120.0,0.3608]
[1737421815117,0.00146995,102130.0,102120.0,0.400026]
[1737421816115,0.47430949,102150.0,102130.0,0.039222]
[1737421816412,0.43509449,102150.0,102140.0,0.760818]
[1737421816618,0.43509449,102150.0,102130.0,0.682821]
[1737421816619,0.47430849,102150.0,102130.0,0.682821]
[1737421816819,0.47430849,102150.0,102130.0,1.043621]
[1737421818821,0.14578247,102140.0,102130.0,1.043621]
[1737421819219,0.17493896,102150.0,102140.0,0.039218]
[1737421819520,0.17493896,102150.0,102140.0,0.44809617]
[1737421819911,0.17493896,102150.0,102140.0,0.39005431]
[1737421820117,0.17493896,102150.0,102140.0,0.29214469]
[1737421821239,0.20349764,102160.0,102150.0,0.039214]
[1737421821424,0.20349764,102160.0,102150.0,0.400014]
[1737421821623,0.25115861,102160.0,102150.0,0.400014]
[1737421821825,0.25115861,102160.0,102150.0,0.039214]
[1737421822324,0.25115861,102160.0,102150.0,0.487978]
[1737421822715,0.25115861,102160.0,102150.0,0.400014]
[1737421822919,0.29036861,102160.0,102150.0,0.3608]
[1737421823232,0.039214,102150.0,102140.0,0.29214469]
[1737421823529,0.29036961,102160.0,102140.0,0.29214469]
[1737421823716,0.29036961,102160.0,102140.0,0.400018]
[1737421823918,0.039214,102150.0,102140.0,0.400018]
[1737421824524,1.53921,102170.0,102140.0,0.400018]
[1737421824728,1.53921,102170.0,102160.0,0.3608]
[1737421824729,1.54902451,102170.0,102160.0,0.3608]
[1737421825315,1.54902451,102170.0,102150.0,0.3608]
[1737421825526,0.039213,102160.0,102150.0,0.3608]
[1737421826226,0.039213,102160.0,102120.0,0.3608]
[1737421826430,0.039222,102130.0,102120.0,0.3608]
[1737421826728,0.039226,102120.0,102110.0,0.00038651]
[1737421829630,0.400026,102120.0,102110.0,0.00038651]
[1737421830429,0.039226,102120.0,102110.0,0.00038651]
[1737421832332,0.039226,102120.0,102110.0,0.36118651]
[1737421832520,0.039226,102120.0,102110.0,0.03961651]
[1737421832833,0.039226,102120.0,102110.0,0.00038651]
[1737421833018,0.55502449,102120.0,102110.0,0.00038651]
[1737421833216,0.75492449,102120.0,102110.0,0.00038651]
[1737421833630,0.039237,102090.0,102080.0,0.3608]
[1737421833825,0.039241,102080.0,102070.0,0.3608]
[1737421834021,0.039245,102070.0,102060.0,0.00146962]
[1737421834437,1.539243,102080.0,102060.0,0.40151762]
[1737421834734,0.03931774,102070.0,102060.0,0.00146962]
[1737421835127,0.03931774,102070.0,102060.0,0.36226962]
[1737421835627,0.03931774,102070.0,102060.0,0.40151862]
[1737421835829,0.03931774,102070.0,102060.0,0.00146962]
[1737421836026,0.03931774,102070.0,102030.0,0.67385375]
[1737421836027,0.039249,102060.0,102030.0,0.67385375]
[1737421836329,0.039264,102020.0,102010.0,0.85979956]
[1737421836528,0.91586249,102020.0,102010.0,0.85911811]
[1737421836731,0.91595388,102020.0,102010.0,0.19331811]
[1737421837029,0.039268,102010.0,102000.0,0.9904793]
[1737421837334,0.40017826,102010.0,102000.0,0.9899593]
[1737421838235,1.90017826,102010.0,102000.0,0.9899593]
[1737421838424,1.90017826,102010.0,102000.0,0.1]
[1737421838627,0.40017826,102010.0,102000.0,0.1]
[1737421838826,0.03937826,102010.0,102000.0,0.1]
[1737421839128,0.03937826,102010.0,102000.0,0.12455194]
[1737421840628,0.00011026,102010.0,102000.0,0.12455194]
[1737421841235,0.04072841,102040.0,102020.0,0.039263]
[1737421842137,0.20349764,102030.0,102020.0,0.039263]
[1737421842524,0.20349764,102030.0,102020.0,0.760863]
[1737421842725,0.23306826,102040.0,102030.0,0.03926]
[1737421843230,0.23159685,102040.0,102030.0,0.03926]
[1737421844925,0.3608,102060.0,102050.0,0.039253]
[1737421846033,0.3608,102060.0,102030.0,0.61254476]
[1737421846034,0.53390453,102060.0,102030.0,0.61254476]
[1737421846331,0.53390453,102060.0,102030.0,0.25174476]
[1737421846332,0.400054,102050.0,102030.0,0.25174476]
[1737421846538,0.039254,102050.0,102030.0,0.25174476]
[1737421847043,0.039257,102040.0,102020.0,0.039264]
[1737421847226,0.039257,102040.0,102010.0,0.3608]
[1737421847227,0.039261,102030.0,102010.0,0.400067]
[1737421847429,0.19425949,102030.0,102010.0,0.039267]
[1737421847930,0.039261,102030.0,102020.0,0.039264]
[1737421848130,1.8608,102040.0,102020.0,0.039264]
[1737421848131,0.400057,102040.0,102020.0,0.039264]
[1737421848334,0.400057,102040.0,102020.0,0.400064]
[1737421848641,0.400057,102040.0,102020.0,0.039264]
[1737421849136,0.400057,102040.0,102010.0,0.3608]
[1737421849351,0.7353985,102050.0,102030.0,0.03926]
[1737421849352,0.400053,102050.0,102030.0,0.03926]
[1737421849539,0.400053,102050.0,102020.0,0.3608]
[1737421849739,0.14439425,102050.0,102040.0,0.039255]
[1737421850043,0.14439425,102050.0,102040.0,0.400055]
[1737421850239,0.17310453,102060.0,102040.0,0.400055]
[1737421850240,0.17310453,102060.0,102050.0,0.039252]
[1737421850436,0.17310453,102060.0,102050.0,0.400052]
[1737421850639,0.3622704,102080.0,102070.0,0.039245]
[1737421851245,0.0014704,102080.0,102070.0,0.039245]
[1737421851840,0.0014704,102080.0,102070.0,0.400045]
[1737421852040,0.0014704,102080.0,102070.0,0.039245]
[1737421852244,0.400034,102100.0,102090.0,0.039237]
[1737421852245,0.3608,102100.0,102090.0,0.039237]
[1737421852542,0.40003,102110.0,102090.0,0.039237]
[1737421852746,0.40003,102110.0,102070.0,0.400045]
[1737421853045,0.08690569,102080.0,102070.0,0.400045]
[1737421853247,0.11587425,102090.0,102080.0,0.039241]
[1737421853549,0.11587425,102090.0,102080.0,0.400041]
[1737421853950,0.11587425,102090.0,102080.0,0.49800818]
[1737421854133,0.3608,102120.0,102110.0,0.039229]
[1737421854445,0.04069369,102130.0,102100.0,0.3608]
[1737421854644,0.00146969,102130.0,102120.0,0.039226]
[1737421856450,0.00146969,102130.0,102100.0,0.55503149]
[1737421856451,1.5,102120.0,102110.0,0.039229]
[1737421856638,1.900026,102120.0,102100.0,0.039233]
[1737421856840,1.539226,102120.0,102110.0,0.039229]
[1737421858047,1.900026,102120.0,102110.0,0.039229]
[1737421858948,1.8608,102120.0,102090.0,0.04917009]
[1737421859149,0.039232,102110.0,102090.0,0.039235]
[1737421859647,0.400032,102110.0,102090.0,0.039235]
[1737421860254,0.400032,102110.0,102100.0,0.039233]
[1737421860437,0.3608,102110.0,102100.0,0.039233]
[1737421860638,0.400029,102110.0,102100.0,0.039233]
[1737421860950,0.00080001,102120.0,102110.0,0.039229]
[1737421861246,0.039223,102130.0,102110.0,0.039229]
[1737421861651,0.400023,102130.0,102110.0,0.039229]
[1737421861839,0.400023,102130.0,102090.0,0.50875527]
[1737421862040,0.400023,102130.0,102110.0,0.039226]
[1737421862245,0.3608,102120.0,102110.0,0.039226]
[1737421862446,0.400023,102130.0,102110.0,0.039226]
[1737421862945,0.039223,102130.0,102110.0,0.039226]
[1737421863339,0.039223,102130.0,102120.0,0.039226]
[1737421863536,0.79012715,102140.0,102100.0,0.40959397]
[1737421863744,0.400855,102150.0,102130.0,0.039219]
[1737421864054,0.3608,102150.0,102140.0,0.039218]
[1737421864551,0.83583393,102160.0,102140.0,0.039218]
[1737421864750,0.3608,102150.0,102120.0,0.39281295]
[1737421864950,0.3608,102150.0,102140.0,0.039215]
[1737421865650,0.3608,102150.0,102120.0,0.35358695]
[1737421865651,0.400014,102150.0,102130.0,0.03922]
[1737421865838,0.400014,102150.0,102140.0,0.039218]
[1737421866347,0.3608,102150.0,102140.0,0.039218]
[1737421866541,0.44535851,102160.0,102150.0,0.039214]
[1737421866745,0.43582293,102160.0,102150.0,0.039214]
[1737421867042,0.43582293,102160.0,102150.0,0.400014]
[1737421867244,0.43582293,102160.0,102150.0,0.55501249]
[1737421867444,0.36226921,102170.0,102140.0,0.3608]
[1737421867649,0.36226921,102170.0,102140.0,0.51579849]
[1737421867855,0.36226921,102170.0,102160.0,0.03921]
[1737421867856,0.00146921,102170.0,102160.0,0.03921]
[1737421868149,0.36226921,102170.0,102160.0,0.03921]
[1737421868552,0.36226921,102170.0,102150.0,0.039213]
[1737421868858,0.03921,102160.0,102150.0,0.039213]
[1737421869357,0.00146921,102170.0,102160.0,0.03921]
[1737421870856,0.5611,102180.0,102170.0,0.039206]
[1737421871049,0.4,102190.0,102170.0,0.039206]
[1737421871247,0.3608,102180.0,102170.0,0.039206]
[1737421872059,0.45679849,102200.0,102190.0,0.039199]
[1737421872060,0.701795,102200.0,102190.0,0.039199]
[1737421872246,0.6626,102200.0,102190.0,0.039199]
[1737421872847,0.3018,102200.0,102190.0,0.039199]
[1737421873453,0.1,102200.0,102190.0,0.039199]
[1737421873959,0.27395914,102200.0,102190.0,0.45090907]
[1737421874160,0.20338403,102210.0,102190.0,0.49010807]
[1737421874454,0.2324389,102220.0,102200.0,0.55499349]
[1737421874654,0.2324389,102220.0,102210.0,0.399991]
[1737421875052,0.2324389,102220.0,102210.0,0.49783835]
[1737421876561,0.2829098,102250.0,102230.0,0.039183]
[1737421876767,0.23390674,102250.0,102240.0,0.399979]
[1737421877057,0.2324389,102250.0,102240.0,0.55497749]
[1737421877261,0.2324389,102250.0,102240.0,0.65281048]
[1737421877961,0.2324389,102250.0,102240.0,0.55497749]
[1737421879163,0.2324389,102250.0,102240.0,0.399979]
[1737421879365,0.2324389,102250.0,102240.0,0.039179]
[1737421880067,1.7324389,102250.0,102240.0,0.039179]
[1737421880258,0.2324389,102250.0,102240.0,0.039179]
[1737421880560,0.2324389,102250.0,102240.0,0.04910656]
[1737421880863,1.539172,102260.0,102240.0,0.04910656]
[1737421881058,1.5,102260.0,102240.0,0.00992756]
[1737421881276,1.5,102260.0,102250.0,0.039175]
[1737421881863,1.899974,102260.0,102240.0,0.039179]
[1737421882058,0.3608,102250.0,102240.0,0.039179]
[1737421882368,1.900814,102260.0,102240.0,0.039179]
[1737421882565,1.899974,102260.0,102230.0,0.3608]
[1737421882762,1.539174,102260.0,102240.0,0.039177]
[1737421883365,1.899974,102260.0,102240.0,0.039177]
[1737421884064,2.04449111,102260.0,102240.0,0.039177]
[1737421884363,2.04449111,102260.0,102230.0,0.36413728]
[1737421884554,2.04449111,102260.0,102240.0,0.039178]
[1737421885059,2.04449111,102260.0,102230.0,0.36413728]
[1737421885060,0.039179,102240.0,102230.0,0.039182]
[1737421885362,0.3608,102240.0,102220.0,0.039186]
[1737421885660,0.3608,102240.0,102210.0,0.01117665]
[1737421885661,0.039183,102230.0,102210.0,0.01117665]
[1737421885861,0.039187,102220.0,102210.0,0.05036765]
[1737421886066,0.039187,102220.0,102210.0,0.00146741]
[1737421886366,0.399987,102220.0,102210.0,0.00146741]
[1737421886765,2.114543,102230.0,102210.0,0.45011926]
[1737421887061,0.48783885,102220.0,102180.0,8.784e-05]
[1737421887264,0.760798,102190.0,102180.0,8.784e-05]
[1737421887563,0.84864985,102190.0,102180.0,8.784e-05]
[1737421887864,0.039202,102180.0,102160.0,0.01967662]
[1737421888166,0.039202,102180.0,102160.0,0.039207]
[1737421888167,0.3608,102170.0,102160.0,0.039207]
[1737421890264,0.40008235,102170.0,102150.0,0.039213]
[1737421890568,0.40001,102160.0,102150.0,0.039213]
[1737421891255,0.039214,102150.0,102130.0,0.04078623]
[1737421891466,0.039214,102150.0,102130.0,0.00156523]
[1737421891467,0.03930484,102140.0,102130.0,0.00156523]
[1737421891663,0.40010484,102140.0,102130.0,9.667e-05]
[1737421893767,0.57918784,102140.0,102110.0,0.039229]
[1737421893967,0.400021,102130.0,102110.0,0.039229]
[1737421895473,0.3608,102120.0,102110.0,0.039229]
[1737421895675,0.400021,102130.0,102110.0,0.039229]
[1737421895875,0.3608,102120.0,102110.0,0.039229]
[1737421896376,0.3608,102120.0,102110.0,0.04918416]
[1737421896668,0.3608,102130.0,102120.0,0.039225]
[1737421896877,0.400021,102130.0,102120.0,0.039225]
[1737421897172,0.039221,102130.0,102120.0,0.039225]
[1737421897568,0.039225,102120.0,102080.0,0.82538804]
[1737421897768,0.3608,102100.0,102080.0,0.42534804]
[1737421897969,0.3608,102090.0,102080.0,0.00154804]
[1737421898173,0.400037,102090.0,102080.0,7.885e-05]
[1737421898376,0.60423553,102090.0,102080.0,7.885e-05]
[1737421898871,0.039252,102050.0,102040.0,0.29058154]
[1737421899073,0.039256,102040.0,102030.0,0.34761435]
[1737421899265,0.3608,102060.0,102030.0,0.35738664]
[1737421899469,0.3608,102060.0,102050.0,0.039252]
[1737421899668,0.400038,102090.0,102040.0,0.5157579]
[1737421899969,0.400045,102070.0,102040.0,0.1373469]
[1737421900171,0.3608,102050.0,102040.0,0.1373469]
[1737421900374,0.40013761,102050.0,102040.0,9.492e-05]
[1737421900674,0.40013761,102050.0,102030.0,0.34761435]
[1737421900675,0.039256,102040.0,102030.0,0.34761435]
[1737421900883,0.400056,102040.0,102020.0,0.039263]
[1737421901261,0.3608,102030.0,102010.0,0.00994245]
[1737421901464,0.36088561,102050.0,102030.0,0.039259]
[1737421902975,0.36088561,102050.0,102040.0,0.039256]
[1737421903278,8.561e-05,102050.0,102040.0,0.039256]
[1737421903775,8.561e-05,102050.0,102040.0,0.13725198]
[1737421904272,8.561e-05,102050.0,102040.0,0.400056]
[1737421904570,8.561e-05,102050.0,102040.0,0.49805198]
[1737421906279,0.3608,102070.0,102060.0,0.039248]
[1737421907278,0.40014405,102070.0,102050.0,0.039252]
[1737421907481,0.3608,102060.0,102050.0,0.039252]
[1737421908377,0.40014405,102070.0,102050.0,0.039252]
[1737421908676,0.3608,102060.0,102050.0,0.039252]
[1737421910579,0.00010005,102070.0,102060.0,0.039248]
[1737421911474,0.36090005,102070.0,102060.0,0.039248]
[1737421912276,0.36090005,102070.0,102050.0,0.4326]
[1737421912476,0.36090005,102070.0,102040.0,0.0096324]
[1737421912676,0.400052,102050.0,102010.0,0.6545]
[1737421912977,0.400052,102050.0,102020.0,0.09798157]
[1737421913181,0.3608,102040.0,102030.0,0.039256]
[1737421913680,0.400052,102050.0,102030.0,0.039256]
[1737421913884,0.3608,102040.0,102030.0,0.039256]
[1737421914184,0.400052,102050.0,102030.0,0.039256]
[1737421914579,0.3608,102040.0,102030.0,0.039256]
[1737421915888,0.400049,102060.0,102030.0,0.49806158]
[1737421916086,0.400049,102060.0,102050.0,0.039252]
[1737421917485,0.039252,102050.0,102040.0,0.039255]
[1737421917691,0.400052,102050.0,102040.0,0.039255]
[1737421918686,0.039252,102050.0,102040.0,0.039255]
[1737421919286,0.400052,102050.0,102040.0,0.039255]
[1737421919686,0.400052,102050.0,102010.0,1.02519231]
[1737421919887,0.400056,102040.0,102020.0,0.03926]
[1737421920087,0.400056,102040.0,102010.0,1.02519231]
[1737421920088,0.03926,102030.0,102010.0,0.58575429]
[1737421920295,0.40006,102030.0,102010.0,0.26855831]
[1737421920497,0.40006,102030.0,102000.0,0.10147047]
[1737421920498,0.36088942,102020.0,102000.0,0.14074047]
[1737421920688,0.400068,102010.0,102000.0,0.14074047]
[1737421920888,0.039268,102010.0,102000.0,0.14074047]
[1737421921296,0.039268,102010.0,102000.0,0.1260195]
[1737421921297,0.400068,102010.0,102000.0,0.1260195]
[1737421921589,0.40014993,102010.0,102000.0,0.12454903]
[1737421921892,0.039271,102000.0,101990.0,7.266e-05]
[1737421922080,0.5550289,102000.0,101990.0,7.266e-05]
[1737421922388,0.3608,102000.0,101990.0,7.266e-05]
[1737421922593,0.58974569,102010.0,102000.0,0.039271]
[1737421922786,0.58974569,102010.0,101990.0,7.266e-05]
[1737421922787,8.193e-05,102010.0,101990.0,7.266e-05]
[1737421922981,0.400071,102000.0,101990.0,7.266e-05]
[1737421923383,0.700071,102000.0,101990.0,7.266e-05]
[1737421923588,0.039275,101990.0,101980.0,0.037]
[1737421923894,0.5550329,101990.0,101980.0,0.037]
[1737421924198,0.3608,102000.0,101990.0,0.039275]
[1737421924583,0.36087762,102000.0,101990.0,0.039275]
[1737421924988,0.40014862,102000.0,101990.0,0.039275]
[1737421925197,0.40014862,102000.0,101980.0,0.076279]
[1737421925401,0.400075,101990.0,101980.0,0.037]
[1737421925693,0.5550329,101990.0,101960.0,0.01148755]
[1737421925891,0.039287,101960.0,101950.0,9.734e-05]
[1737421926092,0.039298,101930.0,101920.0,0.00147172]
[1737421926305,0.400098,101930.0,101920.0,0.00147172]
[1737421926685,0.039302,101920.0,101910.0,0.23234372]
[1737421926896,0.5550599,101920.0,101910.0,0.23234372]
[1737421927102,0.039306,101910.0,101900.0,0.44761435]
[1737421927298,0.40022809,101910.0,101900.0,0.44761435]
[1737421927597,0.400106,101910.0,101900.0,0.44761435]
[1737421928096,0.400106,101910.0,101900.0,0.03199999]
[1737421928498,0.40021318,101910.0,101900.0,0.03199999]
[1737421929092,0.36090718,101910.0,101900.0,0.07130999]
[1737421929898,0.40021318,101910.0,101900.0,0.07130999]
[1737421930097,0.40021318,101910.0,101900.0,0.03199999]
[1737421931004,0.700106,101910.0,101870.0,0.34908677]
[1737421931204,0.5157579,101880.0,101870.0,0.34908677]
[1737421931504,0.51586303,101880.0,101870.0,0.34908677]
[1737421931904,0.51586303,101880.0,101870.0,0.37366734]
[1737421932119,0.55518103,101880.0,101870.0,0.37219492]
[1737421932599,0.039323,101870.0,101850.0,0.00064189]
[1737421932799,0.5157579,101860.0,101850.0,8.189e-05]
[1737421933201,0.55516013,101860.0,101850.0,8.189e-05]
[1737421933403,0.039335,101840.0,101820.0,0.039339]
[1737421933608,0.3608,101830.0,101820.0,0.039339]
[1737421933811,0.3608,101830.0,101820.0,0.07007836]
[1737421934017,0.37063899,101880.0,101850.0,0.039326]
[1737421934315,0.0001253,101870.0,101860.0,0.039324]
[1737421934713,0.039325,101860.0,101850.0,0.09817878]
[1737421934910,0.1942829,101860.0,101830.0,0.400135]
[1737421935110,0.3608,101850.0,101830.0,0.400135]
[1737421935317,7.823e-05,101840.0,101830.0,0.400135]
[1737421935509,7.823e-05,101840.0,101830.0,0.3608]
[1737421935715,7.823e-05,101840.0,101830.0,0.400137]
[1737421937214,0.400125,101870.0,101830.0,0.45899806]
[1737421937517,0.400125,101870.0,101850.0,0.039328]